bitfinex/quotes_BTCUSD_20220303
["timestamp","ask_amount","ask_price","bid_price","bid_amount"]
[1646340287390,0.01186,42156.0,42154.0,0.10556353]
[1646340287589,0.4509,42167.0,42155.0,0.0438]
[1646340287986,0.004,42171.0,42155.0,0.0438]
[1646340287987,0.004,42171.0,42161.0,0.10710722]
[1646340288196,0.004,42171.0,42161.0,0.15090722]
[1646340288386,0.04442674,42162.0,42161.0,0.0438]
[1646340288793,0.55581574,42162.0,42161.0,0.0438]
[1646340288988,0.20526674,42162.0,42155.0,0.2499]
[1646340289192,0.2,42153.0,42152.0,0.0438]
[1646340289389,0.18266023,42152.0,42150.0,0.003]
[1646340289736,0.18266023,42152.0,42145.0,0.0438]
[1646340289737,0.2,42151.0,42145.0,0.0438]
[1646340289930,0.18266023,42152.0,42135.0,0.02176]
[1646340289931,0.60406369,42152.0,42142.0,0.0438]
[1646340290135,0.15,42143.0,42142.0,0.0438]
[1646340290732,0.36498882,42143.0,42142.0,0.0438]
[1646340290934,0.36498882,42143.0,42135.0,0.13686142]
[1646340290935,0.38917973,42143.0,42135.0,0.02176]
[1646340291136,0.15,42136.0,42135.0,0.02176]
[1646340291336,0.405725,42142.0,42135.0,6e-05]
[1646340291337,0.15,42137.0,42135.0,6e-05]
[1646340291536,0.17419091,42136.0,42116.0,0.0438]
[1646340291736,0.2,42137.0,42116.0,0.0438]
[1646340291737,0.15,42126.0,42116.0,0.0438]
[1646340291934,0.779974,42135.0,42116.0,0.15820822]
[1646340291935,0.15,42122.0,42116.0,0.15820822]
[1646340292133,0.15,42122.0,42116.0,0.11440822]
[1646340292336,0.15,42122.0,42116.0,0.11640822]
[1646340292535,0.00118776,42127.0,42116.0,0.11640822]
[1646340292735,0.00118776,42127.0,42117.0,0.72502091]
[1646340292932,0.00118776,42127.0,42125.0,0.12632389]
[1646340293335,0.00118776,42127.0,42117.0,0.71223]
[1646340293336,0.00118776,42127.0,42126.0,0.02745865]
[1646340293583,0.00118776,42127.0,42117.0,0.71223]
[1646340293584,0.15118776,42127.0,42117.0,0.71223]
[1646340293784,0.15013912,42124.0,42117.0,0.71223]
[1646340293986,0.15027824,42124.0,42117.0,0.71223]
[1646340294383,0.15013912,42124.0,42119.0,0.09535213]
[1646340294583,0.15,42124.0,42119.0,0.09535213]
[1646340294889,0.16186,42135.0,42119.0,0.09535213]
[1646340294890,0.01186,42135.0,42134.0,0.10724527]
[1646340295085,0.00060596,42136.0,42121.0,0.40317038]
[1646340295284,0.00016828,42124.0,42121.0,0.40317038]
[1646340295484,0.00033656,42124.0,42122.0,0.71222]
[1646340295685,1.484e-05,42124.0,42123.0,0.4409691]
[1646340295985,1.484e-05,42124.0,42123.0,1.23662903]
[1646340296184,1.484e-05,42124.0,42123.0,1.60050021]
[1646340296487,0.00060596,42125.0,42123.0,1.60850021]
[1646340296686,0.00060596,42125.0,42124.0,0.58062903]
[1646340296885,0.00060596,42125.0,42124.0,0.72404549]
[1646340297930,0.00060596,42126.0,42124.0,0.72404549]
[1646340298131,0.00060596,42126.0,42125.0,0.02745865]
[1646340298333,0.00060596,42126.0,42125.0,0.01187]
[1646340298733,0.00060596,42126.0,42125.0,0.01186986]
[1646340299239,0.00060596,42126.0,42124.0,0.71218]
[1646340299431,0.0438,42126.0,42124.0,0.71218]
[1646340300036,0.00060596,42127.0,42125.0,0.29582307]
[1646340300234,0.00060596,42127.0,42126.0,0.02745865]
[1646340300435,0.00060596,42127.0,42125.0,0.11814441]
[1646340300436,0.00094252,42127.0,42125.0,0.11814441]
[1646340300636,0.0011108,42127.0,42126.0,0.71215]
[1646340300837,0.00050484,42127.0,42126.0,0.71215]
[1646340301096,0.18990874,42127.0,42126.0,0.71215]
[1646340301307,0.18974046,42127.0,42126.0,0.71215]
[1646340301893,0.00060596,42128.0,42126.0,0.71215]
[1646340302693,0.00094252,42132.0,42127.0,0.35]
[1646340302894,0.00094252,42132.0,42126.0,0.82290968]
[1646340303095,0.00062629,42132.0,42127.0,0.3993981]
[1646340303694,0.16454936,42141.0,42126.0,0.71215]
[1646340303892,0.15,42145.0,42126.0,0.71215]
[1646340304091,0.15,42145.0,42127.0,0.3993981]
[1646340304292,0.02368,42144.0,42127.0,0.3993981]
[1646340304496,0.15,42137.0,42126.0,0.71215]
[1646340304735,0.16186,42138.0,42126.0,0.92318517]
[1646340304934,0.01186,42138.0,42126.0,0.65324946]
[1646340305135,0.01186,42139.0,42126.0,0.65324946]
[1646340305336,0.02368,42133.0,42126.0,0.65324946]
[1646340305538,0.3,42127.0,42124.0,0.01]
[1646340305738,0.15,42120.0,42110.0,0.0011]
[1646340305936,0.39600928,42119.0,42110.0,0.0011]
[1646340306335,0.21935097,42116.0,42110.0,0.0011]
[1646340306837,0.15,42118.0,42110.0,0.0011]
[1646340307238,0.15,42111.0,42110.0,0.0011]
[1646340307435,0.54600928,42111.0,42110.0,0.0001]
[1646340307636,0.1938,42111.0,42110.0,0.0001]
[1646340307838,0.40787928,42118.0,42110.0,0.0001]
[1646340307839,0.01187,42118.0,42110.0,0.0001]
[1646340308035,0.059401,42119.0,42110.0,0.0001]
[1646340308036,0.15,42119.0,42110.0,0.0001]
[1646340308482,0.005,42118.0,42112.0,0.15701214]
[1646340308682,0.005,42118.0,42110.0,0.0001]
[1646340309284,0.005,42118.0,42114.0,0.4602708]
[1646340309485,0.005,42118.0,42114.0,0.58774262]
[1646340309789,0.2073849,42117.0,42114.0,0.4602708]
[1646340309987,0.362389,42116.0,42114.0,0.4602708]
[1646340310186,0.2073849,42117.0,42114.0,0.4602708]
[1646340310388,0.15,42115.0,42114.0,0.4602708]
[1646340310586,0.0438,42116.0,42114.0,0.4602708]
[1646340311186,0.003,42117.0,42114.0,0.4602708]
[1646340311586,0.15,42122.0,42114.0,0.4602708]
[1646340311786,0.059391,42123.0,42114.0,0.4602708]
[1646340311986,0.15,42120.0,42114.0,0.4602708]
[1646340312436,0.15,42120.0,42114.0,0.4622708]
[1646340312837,0.39600928,42122.0,42114.0,0.4622708]
[1646340313034,0.23015533,42116.0,42114.0,0.4622708]
[1646340313434,0.39600928,42115.0,42114.0,0.4622708]
[1646340313633,0.39600928,42115.0,42114.0,0.4602708]
[1646340313634,0.95219828,42115.0,42114.0,0.4602708]
[1646340313836,0.95219828,42115.0,42110.0,0.0001]
[1646340313837,0.74738,42113.0,42110.0,0.0001]
[1646340314035,0.806799,42108.0,42102.0,0.0011]
[1646340314237,0.06739194,42104.0,42102.0,0.0011]
[1646340314437,1.3378287,42103.0,42102.0,0.0011]
[1646340314638,1.4853287,42103.0,42102.0,0.0011]
[1646340314836,1.4971987,42103.0,42100.0,0.0001]
[1646340315040,0.74738,42101.0,42100.0,0.0001]
[1646340315236,0.4641287,42101.0,42100.0,0.0001]
[1646340315439,0.06748,42101.0,42100.0,0.0001]
[1646340315637,0.0438,42101.0,42100.0,0.0001]
[1646340317488,0.003,42106.0,42100.0,0.0001]
[1646340317688,0.059408,42108.0,42100.0,0.0001]
[1646340318088,0.4681,42112.0,42100.0,0.0001]
[1646340318288,0.4681,42112.0,42104.0,0.0025]
[1646340318687,0.4681,42112.0,42100.0,0.0031]
[1646340318688,0.21358139,42113.0,42100.0,0.0031]
[1646340318887,0.21358139,42113.0,42105.0,0.21099705]
[1646340319089,0.21358139,42113.0,42100.0,0.0031]
[1646340319386,0.15,42111.0,42100.0,0.0031]
[1646340319587,0.15,42108.0,42100.0,0.0001]
[1646340319834,0.118814,42110.0,42100.0,0.0001]
[1646340319835,0.15,42106.0,42100.0,0.0001]
[1646340320037,0.15,42101.0,42100.0,0.0001]
[1646340320240,0.536069,42101.0,42100.0,0.0001]
[1646340320434,1.42539043,42101.0,42100.0,0.0001]
[1646340320634,1.42539043,42101.0,42096.0,1.08e-05]
[1646340320635,0.386069,42100.0,42096.0,1.08e-05]
[1646340320835,0.386069,42100.0,42091.0,0.03898]
[1646340320836,0.02368,42096.0,42091.0,0.03898]
[1646340321035,0.15,42093.0,42091.0,0.03898]
[1646340321233,0.362389,42089.0,42084.0,0.21212989]
[1646340321435,0.21422769,42084.0,42077.0,0.0011]
[1646340321836,0.05944757,42085.0,42077.0,0.0011]
[1646340322235,0.362389,42084.0,42077.0,0.0011]
[1646340322435,0.05944757,42085.0,42077.0,0.0011]
[1646340322635,0.15,42086.0,42077.0,0.0011]
[1646340323035,0.059446,42088.0,42077.0,0.0011]
[1646340323234,0.059446,42088.0,42081.0,0.09275687]
[1646340323484,0.059446,42088.0,42082.0,0.4012487]
[1646340323678,0.059446,42088.0,42082.0,0.0046]
[1646340324080,0.059446,42088.0,42087.0,0.02745865]
[1646340324478,0.05933371,42088.0,42087.0,0.02745865]
[1646340324678,0.05933371,42088.0,42083.0,0.0061]
[1646340324881,0.05933371,42088.0,42086.0,0.0025]
[1646340325280,0.523704,42105.0,42092.0,0.09466837]
[1646340325281,0.059415,42098.0,42092.0,0.09466837]
[1646340325684,0.01187,42108.0,42100.0,0.10810957]
[1646340325882,0.479,42110.0,42103.0,0.0025]
[1646340326079,0.74738,42117.0,42100.0,0.10810957]
[1646340326080,0.16187,42116.0,42100.0,0.10810957]
[1646340326281,0.15,42116.0,42105.0,0.0025]
[1646340326480,0.003,42110.0,42105.0,0.0025]
[1646340326681,0.062399,42110.0,42106.0,0.17928807]
[1646340326880,0.062399,42110.0,42100.0,0.10560957]
[1646340327359,0.003,42110.0,42107.0,0.12673738]
[1646340327754,0.059384,42118.0,42107.0,0.12673738]
[1646340328353,0.059384,42118.0,42114.0,0.09265122]
[1646340328554,0.059384,42118.0,42107.0,0.002]
[1646340328754,0.059384,42118.0,42107.0,0.0458]
[1646340329154,0.15,42117.0,42107.0,0.0458]
[1646340329856,0.362389,42116.0,42097.0,0.02444]
[1646340330055,0.15,42110.0,42097.0,0.02444]
[1646340330454,0.3966487,42109.0,42097.0,0.02444]
[1646340330658,0.059415,42107.0,42097.0,0.02444]
[1646340330853,0.059415,42107.0,42102.0,0.11970931]
[1646340331087,0.118829,42107.0,42097.0,0.02444]
[1646340331291,0.15,42101.0,42097.0,0.02444]
[1646340331989,0.3966487,42100.0,42097.0,0.02444]
[1646340332187,0.15,42101.0,42097.0,0.02444]
[1646340332388,0.059416,42100.0,42097.0,0.22444]
[1646340332588,0.15,42099.0,42097.0,0.22444]
[1646340332990,0.059416,42100.0,42097.0,0.22444]
[1646340333390,0.003,42101.0,42099.0,0.02745865]
[1646340333590,0.003,42101.0,42100.0,0.12008916]
[1646340333791,0.003,42101.0,42100.0,0.98443788]
[1646340334192,0.003,42101.0,42100.0,1.42488658]
[1646340334392,0.059394,42117.0,42100.0,1.42488658]
[1646340334737,0.059394,42117.0,42109.0,0.12462066]
[1646340334940,0.11879,42114.0,42110.0,0.21653557]
[1646340335139,0.11879,42114.0,42109.0,0.12462066]
[1646340335140,0.09379,42114.0,42109.0,0.12462066]
[1646340335342,0.09379,42114.0,42106.0,0.0438]
[1646340336144,0.059401,42113.0,42106.0,0.0438]
[1646340336942,0.2193567,42111.0,42106.0,0.0438]
[1646340337140,0.15,42109.0,42106.0,0.0438]
[1646340337343,0.15,42109.0,42108.0,0.02745865]
[1646340338587,0.153,42109.0,42108.0,0.02745865]
[1646340338985,0.003,42109.0,42108.0,0.02745865]
[1646340339190,0.153,42109.0,42108.0,0.02745865]
[1646340339990,0.059409,42107.0,42100.0,0.71259]
[1646340340190,0.118818,42107.0,42100.0,0.71259]
[1646340340589,0.118818,42107.0,42101.0,0.19304877]
[1646340340791,0.118818,42107.0,42100.0,0.71259]
[1646340340792,0.17925001,42104.0,42100.0,0.71259]
[1646340340995,0.32925001,42104.0,42100.0,0.71259]
[1646340341191,0.53743278,42103.0,42100.0,0.71259]
[1646340341391,0.386069,42102.0,42100.0,0.71259]
[1646340341591,0.362389,42102.0,42097.0,0.2]
[1646340341788,0.51375278,42103.0,42097.0,0.35448699]
[1646340341989,0.118833,42103.0,42097.0,0.35448699]
[1646340342241,0.118833,42103.0,42098.0,0.10264854]
[1646340342439,0.059417,42103.0,42098.0,0.10264854]
[1646340343240,0.065398,42108.0,42107.0,0.09671709]
[1646340343437,0.065398,42108.0,42107.0,0.09597509]
[1646340343640,0.065398,42108.0,42099.0,0.71258]
[1646340343836,0.059398,42108.0,42099.0,0.71258]
[1646340344040,0.05941478,42106.0,42099.0,0.71258]
[1646340344240,0.17353549,42100.0,42099.0,0.71258]
[1646340344837,0.059422,42102.0,42099.0,0.71258]
[1646340345137,0.059422,42102.0,42100.0,0.09297973]
[1646340345341,0.059422,42102.0,42100.0,0.25134335]
[1646340346184,0.059402,42106.0,42100.0,0.25134335]
[1646340346580,0.059402,42106.0,42100.0,0.25234335]
[1646340346979,0.059402,42106.0,42101.0,0.71257]
[1646340348185,0.15,42103.0,42101.0,0.71257]
[1646340348785,0.18886536,42102.0,42101.0,0.71257]
[1646340349751,0.062395,42111.0,42101.0,0.97288599]
[1646340349958,0.178225,42120.0,42102.0,0.39491978]
[1646340349959,0.15,42109.0,42102.0,0.39491978]
[1646340350350,0.15,42109.0,42101.0,0.97288599]
[1646340350552,0.01187,42119.0,42102.0,0.002]
[1646340350553,0.001,42114.0,42102.0,0.002]
[1646340350754,0.933115,42104.0,42102.0,0.002]
[1646340350950,0.75730878,42103.0,42102.0,0.002]
[1646340351357,0.78098878,42103.0,42102.0,0.002]
[1646340351552,0.78098878,42103.0,42102.0,0.0001]
[1646340351751,1.50468878,42103.0,42102.0,0.0001]
[1646340351950,1.50468878,42103.0,42099.0,0.01]
[1646340352151,0.74738,42101.0,42099.0,0.01]
[1646340352351,0.536069,42100.0,42099.0,0.01]
[1646340352953,0.37612335,42100.0,42099.0,0.01]
[1646340353157,1.85713213,42100.0,42099.0,0.01]
[1646340353481,1.49474313,42100.0,42099.0,0.0001]
[1646340353681,1.85713213,42100.0,42099.0,0.0001]
[1646340354082,1.109769,42098.0,42097.0,0.2]
[1646340354283,1.65468878,42098.0,42097.0,0.2]
[1646340355482,0.536069,42098.0,42097.0,0.2]
[1646340356488,0.17368,42098.0,42097.0,0.2]
[1646340356685,0.536069,42098.0,42097.0,0.2]
[1646340356885,0.512389,42098.0,42097.0,0.2]
[1646340357435,0.15,42098.0,42097.0,0.2]
[1646340359836,0.201916,42111.0,42097.0,0.2]
[1646340359837,0.118826,42106.0,42102.0,0.11065781]
[1646340360037,0.16456222,42107.0,42102.0,0.11065781]
[1646340360038,0.15,42107.0,42102.0,0.11065781]
[1646340360337,0.15,42107.0,42097.0,0.4]
[1646340360536,0.15,42101.0,42097.0,0.4]
[1646340360987,0.15,42098.0,42097.0,0.4]
[1646340361188,0.05942,42100.0,42097.0,0.4]
[1646340361389,0.15,42098.0,42097.0,0.4]
[1646340361589,0.05942,42100.0,42097.0,0.4]
[1646340361786,0.15,42098.0,42097.0,0.4]
[1646340362192,1.79718878,42098.0,42097.0,0.146]
[1646340362387,1.79718878,42098.0,42094.0,0.00027249]
[1646340362388,1.169217,42096.0,42094.0,0.00027249]
[1646340362588,0.9175,42095.0,42094.0,0.00027249]
[1646340362788,0.0438,42095.0,42094.0,0.00018166]
[1646340362990,0.15,42098.0,42094.0,9.083e-05]
[1646340363189,0.3149,42113.0,42094.0,0.30508115]
[1646340363190,0.15,42101.0,42094.0,0.30508115]
[1646340363689,0.155,42103.0,42094.0,0.30508115]
[1646340363888,0.15,42100.0,42094.0,0.30508115]
[1646340364095,0.15,42100.0,42094.0,0.1300127]
[1646340364288,0.059418,42099.0,42094.0,0.1300127]
[1646340364737,0.153,42100.0,42094.0,0.1300127]
[1646340365332,0.153,42100.0,42094.0,0.13010262]
[1646340365533,0.059418,42099.0,42094.0,0.13010262]
[1646340365733,0.003,42100.0,42094.0,0.13019254]
[1646340365946,0.003,42100.0,42094.0,0.13028246]
[1646340366333,0.003,42100.0,42094.0,0.13019254]
[1646340366532,0.003,42100.0,42094.0,0.1320127]
[1646340366736,0.15,42104.0,42103.0,0.11743166]
[1646340367733,0.15,42104.0,42094.0,0.00226976]
[1646340367935,0.15,42104.0,42094.0,0.00017984]
[1646340368138,0.15,42104.0,42093.0,0.15]
[1646340368337,0.15,42104.0,42089.0,0.1511]
[1646340368590,0.059415,42101.0,42094.0,8.992e-05]
[1646340368789,0.362389,42099.0,42094.0,8.992e-05]
[1646340368993,0.1799046,42097.0,42094.0,0.00017984]
[1646340369188,0.15,42098.0,42094.0,0.00026976]
[1646340369393,0.7237,42102.0,42094.0,0.00026976]
[1646340369588,0.07159026,42104.0,42094.0,0.00017984]
[1646340369589,0.7237,42101.0,42094.0,0.00017984]
[1646340369790,0.1,42105.0,42095.0,0.02368]
[1646340369991,0.1,42105.0,42103.0,0.10748538]
[1646340370190,0.095,42105.0,42103.0,0.10748538]
[1646340370388,0.095,42105.0,42103.0,0.17364538]
[1646340370588,0.096,42105.0,42103.0,0.17364538]
[1646340370791,0.096,42105.0,42103.0,0.06616]
[1646340371289,1.24504225,42104.0,42098.0,0.001]
[1646340371491,0.52134225,42104.0,42098.0,0.001]
[1646340371693,0.095,42099.0,42098.0,0.001]
[1646340371894,0.481069,42099.0,42096.0,0.71259]
[1646340372095,0.386069,42096.0,42094.0,8.97e-05]
[1646340372339,1.7318768,42095.0,42094.0,8.97e-05]
[1646340372639,1.199769,42095.0,42094.0,0.0002691]
[1646340372837,0.476069,42095.0,42094.0,0.0002691]
[1646340373039,0.452389,42095.0,42094.0,0.0001794]
[1646340373237,0.452389,42095.0,42089.0,0.11265661]
[1646340373438,0.362389,42093.0,42089.0,0.11265661]
[1646340373638,0.059441,42096.0,42089.0,0.11265661]
[1646340373839,0.054441,42096.0,42089.0,0.11265661]
[1646340374239,0.41683,42096.0,42089.0,0.11265661]
[1646340374441,0.054441,42096.0,42089.0,0.11265661]
[1646340375842,0.09,42091.0,42089.0,0.11265661]
[1646340376086,0.144441,42096.0,42089.0,0.11265661]
[1646340376686,0.09,42091.0,42089.0,0.0011]
[1646340376887,0.0882,42091.0,42090.0,8.948e-05]
[1646340377189,0.450589,42091.0,42090.0,8.948e-05]
[1646340377386,0.0882,42091.0,42090.0,0.00017896]
[1646340377690,0.0882,42091.0,42090.0,0.00026844]
[1646340378091,0.0832,42091.0,42090.0,0.00017896]
[1646340378287,0.059433,42093.0,42089.0,0.11810063]
[1646340378688,0.362389,42090.0,42089.0,0.11819011]
[1646340379087,0.362389,42090.0,42089.0,0.11827959]
[1646340379287,0.362389,42090.0,42089.0,0.11836907]
[1646340379758,0.362389,42090.0,42089.0,0.11827959]
[1646340379957,0.362389,42090.0,42089.0,0.11810063]
[1646340380160,0.362389,42090.0,42089.0,0.0011]
[1646340380360,1.54493792,42090.0,42087.0,2.00008949]
[1646340380563,1.8369468,42089.0,42087.0,1.99917898]
[1646340380759,1.8369468,42089.0,42083.0,0.0011]
[1646340380760,0.57915,42087.0,42083.0,0.0011]
[1646340380962,0.0832,42079.0,42072.0,0.0032]
[1646340381160,0.02368,42077.0,42074.0,0.0003]
[1646340381360,0.02368,42077.0,42060.0,0.0021]
[1646340381361,0.02368,42073.0,42060.0,0.0021]
[1646340381561,1.192969,42070.0,42060.0,0.0021]
[1646340381760,0.83058,42070.0,42060.0,0.18066167]
[1646340381961,0.0832,42070.0,42060.0,0.18066167]
[1646340382160,0.0832,42070.0,42066.0,0.10570783]
[1646340383162,0.059479,42072.0,42066.0,0.10570783]
[1646340383363,0.004,42075.0,42066.0,0.10570783]
[1646340383991,0.059452,42076.0,42066.0,0.10570783]
[1646340384191,0.059452,42076.0,42066.0,0.0011]
[1646340384396,0.0832,42075.0,42066.0,0.0011]
[1646340384792,0.120912,42076.0,42066.0,0.0011]
[1646340385392,0.120912,42076.0,42070.0,8.348e-05]
[1646340385795,0.120912,42076.0,42070.0,0.00025044]
[1646340385996,0.0594616,42074.0,42070.0,0.00025044]
[1646340386494,0.05946,42073.0,42067.0,0.11156809]
[1646340386794,0.05946,42073.0,42070.0,8.348e-05]
[1646340387239,0.05946,42073.0,42070.0,0.00016696]
[1646340387240,0.14266,42073.0,42070.0,0.00016696]
[1646340387543,0.362389,42072.0,42070.0,0.00025044]
[1646340387739,0.362389,42072.0,42070.0,0.00016696]
[1646340387940,0.362389,42072.0,42067.0,0.001]
[1646340388238,0.783166,42072.0,42069.0,0.00118348]
[1646340388638,0.0832,42070.0,42069.0,0.00118348]
[1646340388839,0.0832,42070.0,42069.0,0.00135044]
[1646340389239,0.0832,42070.0,42069.0,0.00126696]
[1646340389438,0.0832,42070.0,42069.0,0.00118348]
[1646340389638,0.0832,42070.0,42069.0,0.0011]
[1646340390043,0.8069,42070.0,42069.0,0.0011]
[1646340390647,1.192969,42070.0,42069.0,0.0011]
[1646340390846,0.7237,42068.0,42067.0,0.00112732]
[1646340391087,1.228589,42068.0,42067.0,0.00112732]
[1646340391286,1.352269,42068.0,42067.0,2.732e-05]
[1646340391492,1.352269,42068.0,42066.0,0.0011]
[1646340391493,0.1425,42067.0,42066.0,0.0011]
[1646340391688,0.8662,42067.0,42066.0,0.0011]
[1646340391890,0.142678,42068.0,42066.0,0.0011]
[1646340392487,0.362389,42067.0,42066.0,0.0011]
[1646340392888,1.086089,42067.0,42066.0,0.0011]
[1646340393089,0.7237,42067.0,42066.0,0.0011]
[1646340393490,1.41684738,42067.0,42065.0,0.0011]
[1646340393691,1.252269,42066.0,42065.0,0.0011]
[1646340393890,1.72297552,42066.0,42065.0,0.0011]
[1646340394097,0.1425,42063.0,42058.0,0.00319906]
[1646340394291,1.252269,42061.0,42058.0,0.00253302]
[1646340394493,1.944889,42058.0,42042.0,0.13097518]
[1646340394740,1.192969,42055.0,42042.0,0.13097518]
[1646340394938,1.58047552,42055.0,42042.0,0.13097518]
[1646340395138,1.58047552,42055.0,42053.0,0.002066]
[1646340395139,0.7,42054.0,42053.0,0.002066]
[1646340395343,2.17359552,42054.0,42053.0,0.002066]
[1646340395540,2.17359552,42054.0,42053.0,6.6e-05]
[1646340395541,2.36356591,42054.0,42053.0,6.6e-05]
[1646340395739,1.086089,42053.0,42040.0,0.0011]
[1646340395941,0.8662,42052.0,42040.0,0.0011]
[1646340396137,0.8662,42052.0,42050.0,0.0001]
[1646340396138,2.202269,42051.0,42050.0,0.0001]
[1646340396340,0.445589,42051.0,42050.0,0.0001]
[1646340396538,0.0832,42051.0,42050.0,0.0001]
[1646340396938,0.261718,42052.0,42050.0,0.0001]
[1646340397140,0.261718,42052.0,42050.0,0.16807454]
[1646340397141,0.178518,42052.0,42050.0,0.16807454]
[1646340397340,0.16452912,42057.0,42050.0,0.0001]
[1646340397538,0.062479,42056.0,42050.0,0.0001]
[1646340397943,0.059479,42056.0,42050.0,0.0001]
[1646340398341,0.38750652,42061.0,42050.0,0.0001]
[1646340398342,0.1,42061.0,42055.0,0.18566744]
[1646340398804,0.1,42061.0,42054.0,0.12702647]
[1646340398805,0.103,42061.0,42054.0,0.12702647]
[1646340399005,0.103,42061.0,42051.0,0.00024795]
[1646340399206,0.003,42061.0,42051.0,0.0001653]
[1646340399404,0.0832,42053.0,42051.0,8.265e-05]
[1646340399604,0.0832,42053.0,42050.0,0.0001]
[1646340400105,0.0832,42053.0,42050.0,0.00018265]
[1646340400303,0.0832,42053.0,42050.0,0.0002653]
[1646340400606,0.0832,42053.0,42050.0,0.00034795]
[1646340400805,0.0872,42053.0,42050.0,0.00034795]
[1646340401006,0.0872,42053.0,42050.0,0.00018265]
[1646340401306,0.146684,42053.0,42050.0,0.0001]
[1646340401506,0.38750652,42052.0,42050.0,0.0001]
[1646340401705,0.362389,42051.0,42050.0,0.0001]
[1646340402340,0.0832,42051.0,42050.0,0.0001]
[1646340403144,1.21808652,42051.0,42050.0,0.0001]
[1646340403341,1.86677552,42051.0,42050.0,0.0001]
[1646340403742,1.87865552,42051.0,42050.0,0.0001]
[1646340403942,2.04842511,42051.0,42050.0,0.0001]
[1646340404142,1.252269,42049.0,42048.0,0.00016488]
[1646340404342,1.79545552,42049.0,42047.0,0.0032]
[1646340404543,1.77353664,42048.0,42047.0,0.0032]
[1646340404741,1.9700453,42048.0,42047.0,0.0032]
[1646340405748,0.7237,42047.0,42046.0,0.00244735]
[1646340405984,1.51739552,42047.0,42046.0,0.00228245]
[1646340406284,1.61739552,42047.0,42046.0,0.0022]
[1646340406584,0.0438,42047.0,42046.0,0.0022]
[1646340406788,0.61901706,42050.0,42046.0,0.0022]
[1646340406789,0.5,42050.0,42046.0,0.17577438]
[1646340406985,0.5,42050.0,42048.0,0.15]
[1646340407185,0.005,42052.0,42051.0,0.12031958]
[1646340407486,0.005,42052.0,42051.0,0.47777167]
[1646340407684,0.005,42052.0,42051.0,0.32777167]
[1646340408085,0.059473,42063.0,42059.0,0.11326937]
[1646340408584,0.059473,42063.0,42049.0,0.43138896]
[1646340408885,0.059473,42063.0,42049.0,0.4314714]
[1646340408886,0.062473,42063.0,42049.0,0.4314714]
[1646340409085,0.062473,42063.0,42049.0,0.43155384]
[1646340409485,0.062473,42063.0,42056.0,0.1209428]
[1646340409737,0.062473,42063.0,42048.0,0.15]
[1646340409738,0.786173,42063.0,42048.0,0.15]
[1646340409937,0.38750652,42062.0,42048.0,0.17368]
[1646340410138,0.44698352,42062.0,42048.0,0.15]
[1646340410336,0.44698352,42062.0,42054.0,0.1812279]
[1646340410941,0.7237,42061.0,42051.0,0.0004798]
[1646340411137,0.7237,42061.0,42051.0,0.0002399]
[1646340411138,0.0832,42060.0,42051.0,0.0002399]
[1646340411339,0.059481,42057.0,42046.0,0.1522]
[1646340411637,0.059481,42057.0,42046.0,0.0022]
[1646340412039,0.059481,42057.0,42054.0,0.12518109]
[1646340413139,0.054481,42057.0,42054.0,0.12518109]
[1646340413340,0.054481,42057.0,42046.0,0.0022]
[1646340413588,0.38750652,42056.0,42047.0,0.00034092]
[1646340413790,0.118984,42054.0,42047.0,0.00051138]
[1646340413986,0.362389,42052.0,42047.0,0.00051138]
[1646340414187,0.06748,42051.0,42047.0,0.00034092]
[1646340414385,0.7237,42048.0,42047.0,0.00017046]
[1646340414585,1.15500652,42048.0,42046.0,0.0022]
[1646340415185,0.7675,42048.0,42046.0,0.0022]
[1646340415388,0.0438,42048.0,42046.0,0.10973921]
[1646340415585,0.059501,42049.0,42046.0,0.10973921]
[1646340415987,0.86500652,42061.0,42046.0,0.10973921]
[1646340415988,0.118971,42057.0,42046.0,0.10973921]
[1646340416586,0.7237,42055.0,42046.0,0.0022]
[1646340416990,0.118991,42052.0,42046.0,0.0022]
[1646340417238,0.65,42050.0,42041.0,0.0023]
[1646340417440,0.38750652,42050.0,42041.0,0.0023]
[1646340417641,0.38750652,42050.0,42043.0,0.1118267]
[1646340417838,0.23798224,42052.0,42043.0,0.29379327]
[1646340418037,0.23798224,42052.0,42043.0,0.29387124]
[1646340418239,0.059492,42048.0,42043.0,0.11190467]
[1646340418439,0.059492,42048.0,42043.0,7.797e-05]
[1646340418640,0.059492,42048.0,42043.0,0.00023391]
[1646340418844,0.9021935,42048.0,42043.0,0.00023391]
[1646340419040,1.11120652,42047.0,42043.0,0.00015594]
[1646340419244,0.8069,42047.0,42043.0,7.797e-05]
[1646340419440,0.842704,42046.0,42040.0,0.0011]
[1646340420143,0.842704,42046.0,42041.0,0.10720162]
[1646340420144,0.119004,42046.0,42041.0,0.10720162]
[1646340420344,0.059501,42047.0,42041.0,0.10720162]
[1646340420543,0.0438,42051.0,42041.0,0.10736694]
[1646340420744,0.0458,42051.0,42041.0,0.10736694]
[1646340420991,0.0458,42051.0,42041.0,0.10728428]
[1646340421194,0.0458,42051.0,42045.0,0.16568203]
[1646340421597,0.079,42054.0,42045.0,0.16396469]
[1646340421795,0.079,42054.0,42041.0,0.10711896]
[1646340422194,0.059488,42052.0,42046.0,0.00016532]
[1646340422893,0.061488,42052.0,42046.0,0.00016532]
[1646340423092,0.061488,42052.0,42041.0,0.10711896]
[1646340423294,0.059491,42050.0,42040.0,0.0011]
[1646340423495,0.079,42049.0,42040.0,0.0011]
[1646340423693,0.059501,42047.0,42040.0,0.0011]
[1646340424294,0.059501,42047.0,42040.0,0.12882888]
[1646340424495,0.059498,42046.0,42040.0,0.12882888]
[1646340424949,0.002,42047.0,42044.0,0.17368]
[1646340425145,0.002,42047.0,42045.0,0.73719]
[1646340425745,0.079,42060.0,42054.0,0.0982432]
[1646340425949,0.01188,42063.0,42055.0,0.76169417]
[1646340426147,0.534049,42065.0,42056.0,0.38601072]